[Event "FIDE U16 Olympiad_boards_1-80"]
[Site "Eindhoven, Netherlands"]
[Date "2023.08.14"]
[Round "3.74"]
[White "Milovic, Ilija"]
[Black "Khoury, Theo"]
[Result "0-1"]
[TimeControl "2700+10"]
[WhiteElo "1533"]
[BlackElo "1865"]

1. d4 {[%clk 00:45:18]} {[%emt 00:00:02]} d5 {[%clk 00:45:09]} {[%emt
00:00:11]} 2. c4 {[%clk 00:45:19]} {[%emt 00:00:09]} dxc4 {[%clk 00:45:18]}
{[%emt 00:00:02]} 3. e4 {[%clk 00:45:05]} {[%emt 00:00:24]} e5 {[%clk
00:45:27]} {[%emt 00:00:01]} 4. Nf3 {[%clk 00:44:54]} {[%emt 00:00:21]} Bb4+
{[%clk 00:45:35]} {[%emt 00:00:01]} 5. Nc3 {[%clk 00:45:03]} {[%emt 00:00:02]}
exd4 {[%clk 00:45:44]} {[%emt 00:00:02]} 6. Nxd4 {[%clk 00:45:11]} Nd7 {[%clk
00:45:48]} {[%emt 00:00:06]} 7. Bxc4 {[%clk 00:44:21]} {[%emt 00:01:00]} Ngf6
{[%clk 00:45:57]} {[%emt 00:00:01]} 8. f3 {[%clk 00:43:18]} {[%emt 00:01:13]}
O-O {[%clk 00:45:16]} {[%emt 00:00:51]} 9. O-O {[%clk 00:43:09]} {[%emt
00:00:19]} Ne5 {[%clk 00:43:04]} {[%emt 00:02:22]} 10. Be2 {[%clk 00:41:32]}
{[%emt 00:01:46]} c5 {[%clk 00:41:18]} {[%emt 00:01:56]} 11. Ndb5 {[%clk
00:36:01]} {[%emt 00:05:41]} Qe7 {[%clk 00:36:20]} {[%emt 00:05:08]} 12. Bg5
{[%clk 00:32:27]} {[%emt 00:03:45]} c4 {[%clk 00:33:26]} {[%emt 00:03:04]} 13.
Kh1 {[%emt 00:02:04]} Bxc3 {[%clk 00:27:03]} {[%emt 00:06:32]} 14. Nxc3 {[%clk
00:30:34]} {[%emt 00:00:10]} Be6 {[%clk 00:26:16]} {[%emt 00:00:57]} 15. f4
{[%clk 00:29:48]} {[%emt 00:00:56]} Rfd8 {[%clk 00:25:23]} {[%emt 00:01:02]} 16.
Qb1 {[%clk 00:27:34]} {[%emt 00:02:24]} Nd3 {[%clk 00:23:04]} {[%emt 00:02:30]}
17. e5 {[%clk 00:25:47]} {[%emt 00:01:57]} Bf5 {[%clk 00:22:40]} {[%emt
00:00:34]} 18. Bxd3 {[%clk 00:23:17]} {[%emt 00:02:39]} Bxd3 {[%clk 00:22:41]}
{[%emt 00:00:09]} 19. Qc1 {[%clk 00:22:34]} {[%emt 00:00:54]} Bxf1 {[%clk
00:20:38]} {[%emt 00:02:13]} 20. Qxf1 {[%clk 00:22:42]} {[%emt 00:00:02]} Qe6
{[%clk 00:20:15]} {[%emt 00:00:33]} 21. exf6 {[%clk 00:22:47]} {[%emt
00:00:05]} gxf6 {[%clk 00:20:23]} {[%emt 00:00:02]} 22. Bh6 {[%clk 00:21:54]}
{[%emt 00:01:03]} f5 {[%clk 00:19:41]} {[%emt 00:00:51]} 23. Bg5 {[%clk
00:21:06]} {[%emt 00:00:59]} Rd2 {[%clk 00:19:22]} {[%emt 00:00:28]} 24. Qf3
{[%clk 00:19:06]} {[%emt 00:02:11]} h6 {[%clk 00:17:37]} {[%emt 00:01:55]} 25.
Bh4 {[%clk 00:16:40]} {[%emt 00:02:36]} Re8 {[%clk 00:15:16]} {[%emt 00:02:30]}
26. Qxb7 {[%clk 00:13:58]} {[%emt 00:02:52]} Qd6 {[%clk 00:10:40]} {[%emt
00:04:47]} 27. Qf3 {[%clk 00:10:45]} {[%emt 00:03:22]} Rxb2 {[%clk 00:09:48]}
{[%emt 00:01:02]} 28. Nd5 {[%clk 00:10:07]} {[%emt 00:00:49]} Re6 {[%clk
00:08:36]} {[%emt 00:01:22]} 29. Qc3 {[%clk 00:07:47]} {[%emt 00:02:29]} Ree2
{[%clk 00:05:57]} {[%emt 00:02:49]} 30. Nf6+ {[%clk 00:07:03]} {[%emt
00:00:55]} Kf8 {[%clk 00:06:00]} {[%emt 00:00:06]} 31. Qxc4 {[%clk 00:06:47]}
{[%emt 00:00:26]} Rbc2 {[%clk 00:05:22]} {[%emt 00:00:49]} 32. Qb5 {[%clk
00:05:56]} {[%emt 00:01:01]} Rxa2 {[%clk 00:04:56]} {[%emt 00:00:36]} 33. Rc1
{[%clk 00:02:39]} {[%emt 00:03:27]} Rac2 {[%clk 00:04:20]} {[%emt 00:00:45]} 34.
Rg1 {[%clk 00:01:31]} {[%emt 00:01:18]} Qe6 {[%clk 00:02:48]} {[%emt 00:01:42]}
35. Qb4+ {[%clk 00:00:56]} {[%emt 00:00:46]} Kg7 {[%clk 00:02:39]} {[%emt
00:00:19]} 36. Qd4 {[%clk 00:00:44]} {[%emt 00:00:21]} Kg6 {[%clk 00:02:12]}
{[%emt 00:00:38]} 37. Qxa7 {[%clk 00:00:32]} {[%emt 00:00:21]} Rc8 {[%clk
00:01:10]} {[%emt 00:01:13]} 38. g4 {[%clk 00:00:22]} {[%emt 00:00:20]} Qc6+
{[%clk 00:01:15]} {[%emt 00:00:04]} 0-1

[Event "FIDE U16 Olympiad_boards_1-80"]
[Site "Eindhoven, Netherlands"]
[Date "2023.08.14"]
[Round "3.75"]
[White "Southcott-Moyers, Indy"]
[Black "Radulovic, Vasilije"]
[Result "1-0"]
[TimeControl "2700+10"]
[WhiteElo "1983"]
[BlackElo "1453"]

1. d4 {[%clk 00:45:19]} {[%emt 02:40:21]} d5 {[%clk 00:45:19]} {[%emt
00:00:01]} 2. c4 {[%clk 00:45:24]} {[%emt 00:00:05]} e6 {[%clk 00:45:28]}
{[%emt 00:00:01]} 3. Nf3 {[%clk 00:45:13]} {[%emt 00:00:21]} Nf6 {[%clk
00:45:34]} {[%emt 00:00:04]} 4. Nc3 {[%clk 00:45:21]} {[%emt 00:00:01]} Be7
{[%clk 00:45:42]} {[%emt 00:00:03]} 5. Bg5 {[%clk 00:44:56]} {[%emt 00:00:35]}
O-O {[%clk 00:45:49]} {[%emt 00:00:03]} 6. e3 {[%clk 00:45:05]} h6 {[%clk
00:45:58]} 7. Bh4 {[%clk 00:45:14]} {[%emt 00:00:01]} Ne4 {[%clk 00:46:06]}
{[%emt 00:00:02]} 8. Bxe7 {[%clk 00:45:18]} {[%emt 00:00:04]} Qxe7 {[%clk
00:46:13]} {[%emt 00:00:05]} 9. Qc2 {[%clk 00:45:26]} {[%emt 00:00:01]} Nxc3
{[%clk 00:46:20]} {[%emt 00:00:04]} 10. Qxc3 {[%clk 00:45:35]} {[%emt
00:00:02]} dxc4 {[%clk 00:46:27]} {[%emt 00:00:03]} 11. Bxc4 {[%clk 00:45:31]}
{[%emt 00:00:14]} b6 {[%clk 00:46:26]} {[%emt 00:00:10]} 12. O-O {[%clk
00:43:21]} {[%emt 00:02:20]} Bb7 {[%clk 00:45:47]} {[%emt 00:00:50]} 13. Be2
{[%clk 00:40:03]} {[%emt 00:03:27]} Rc8 {[%clk 00:44:13]} {[%emt 00:01:44]} 14.
b4 {[%clk 00:39:26]} {[%emt 00:00:48]} Nd7 {[%clk 00:43:05]} {[%emt 00:01:17]}
15. Rac1 {[%clk 00:35:51]} {[%emt 00:03:45]} c5 {[%clk 00:38:00]} {[%emt
00:05:15]} 16. dxc5 {[%clk 00:35:39]} {[%emt 00:00:22]} bxc5 {[%clk 00:38:04]}
{[%emt 00:00:06]} 17. b5 {[%clk 00:35:13]} {[%emt 00:00:37]} Nb6 {[%clk
00:29:13]} {[%emt 00:09:01]} 18. Ne5 {[%clk 00:30:46]} {[%emt 00:04:36]} Bd5
{[%clk 00:25:17]} {[%emt 00:04:06]} 19. f3 {[%clk 00:24:45]} {[%emt 00:06:11]}
f6 {[%clk 00:17:31]} {[%emt 00:07:55]} 20. Nc4 {[%clk 00:24:22]} {[%emt
00:00:33]} Rab8 {[%clk 00:13:18]} {[%emt 00:04:24]} 21. e4 {[%clk 00:23:04]}
{[%emt 00:01:28]} Ba8 {[%clk 00:05:57]} {[%emt 00:07:30]} 22. Rfd1 {[%clk
00:21:06]} {[%emt 00:02:08]} Nxc4 {[%clk 00:05:22]} {[%emt 00:00:46]} 23. Bxc4
{[%clk 00:21:00]} {[%emt 00:00:16]} Kh8 {[%clk 00:05:01]} {[%emt 00:00:31]} 24.
e5 {[%clk 00:19:41]} {[%emt 00:01:29]} Rd8 {[%clk 00:04:15]} {[%emt 00:00:56]}
25. exf6 {[%clk 00:19:02]} {[%emt 00:00:50]} gxf6 {[%clk 00:02:12]} {[%emt
00:02:13]} 26. Qe3 {[%clk 00:18:26]} {[%emt 00:00:44]} Qg7 {[%clk 00:01:24]}
{[%emt 00:00:58]} 27. Bf1 {[%clk 00:13:57]} {[%emt 00:04:40]} Qg5 {[%clk
00:00:15]} {[%emt 00:01:19]} 28. Qxg5 {[%clk 00:13:36]} {[%emt 00:00:31]} hxg5
{[%clk 00:00:16]} {[%emt 00:00:09]} 29. Rxd8+ {[%clk 00:13:40]} {[%emt
00:00:05]} Rxd8 {[%clk 00:00:23]} {[%emt 00:00:04]} 30. Rxc5 {[%clk 00:13:46]}
{[%emt 00:00:04]} Bd5 {[%emt 00:01:31]} 31. a4 {[%clk 00:12:41]} Rd7 {[%clk
00:00:16]} {[%emt 00:00:12]} 32. Kf2 {[%clk 00:09:44]} {[%emt 00:03:07]} Kg7
{[%clk 00:00:19]} {[%emt 00:00:07]} 33. Bc4 {[%clk 00:08:12]} {[%emt 00:01:42]}
Bxc4 {[%clk 00:00:16]} {[%emt 00:00:13]} 34. Rxc4 {[%clk 00:08:20]} {[%emt
00:00:01]} Rb7 {[%clk 00:00:21]} {[%emt 00:00:05]} 35. Rc6 {[%clk 00:08:19]}
{[%emt 00:00:11]} Kf7 {[%clk 00:00:14]} {[%emt 00:00:18]} 36. g3 {[%clk
00:08:17]} {[%emt 00:00:11]} f5 {[%clk 00:00:15]} {[%emt 00:00:09]} 37. h4
{[%clk 00:08:24]} {[%emt 00:00:03]} gxh4 {[%clk 00:00:12]} {[%emt 00:00:13]} 38.
gxh4 {[%clk 00:08:32]} {[%emt 00:00:01]} Kf6 {[%clk 00:00:14]} {[%emt
00:00:09]} 39. Ke3 {[%clk 00:07:45]} {[%emt 00:00:57]} Ke7 {[%clk 00:00:13]}
{[%emt 00:00:11]} 40. Kd4 {[%clk 00:04:21]} {[%emt 00:03:35]} Rd7+ {[%clk
00:00:22]} 41. Kc3 {[%clk 00:04:03]} {[%emt 00:00:27]} Kf6 {[%clk 00:00:18]}
{[%emt 00:00:14]} 42. a5 {[%clk 00:03:40]} {[%emt 00:00:33]} Rb7 {[%clk
00:00:11]} {[%emt 00:00:17]} 43. Kc4 {[%clk 00:03:36]} {[%emt 00:00:13]} Kg6
{[%clk 00:00:13]} {[%emt 00:00:09]} 44. Rxe6+ {[%clk 00:03:39]} {[%emt
00:00:07]} Kh5 {[%clk 00:00:20]} {[%emt 00:00:02]} 45. Rf6 {[%clk 00:03:41]}
{[%emt 00:00:08]} Kxh4 {[%clk 00:00:19]} {[%emt 00:00:12]} 46. Rxf5 {[%clk
00:03:50]} {[%emt 00:00:02]} Kg3 {[%clk 00:00:25]} {[%emt 00:00:04]} 47. Kc5
{[%clk 00:03:42]} {[%emt 00:00:18]} Rc7+ {[%clk 00:00:19]} {[%emt 00:00:15]} 48.
Kd6 {[%clk 00:03:50]} {[%emt 00:00:02]} Rb7 {[%clk 00:00:27]} {[%emt 00:00:02]}
49. Kc6 {[%clk 00:03:57]} {[%emt 00:00:03]} Rg7 {[%clk 00:00:30]} {[%emt
00:00:07]} 50. b6 {[%clk 00:03:53]} {[%emt 00:00:14]} Rg6+ {[%clk 00:00:24]}
{[%emt 00:00:16]} 51. Kb7 {[%clk 00:03:55]} {[%emt 00:00:08]} Rg7+ {[%clk
00:00:33]} {[%emt 00:00:02]} 52. Ka6 {[%clk 00:04:03]} {[%emt 00:00:01]} axb6
{[%clk 00:00:37]} {[%emt 00:00:07]} 53. axb6 {[%clk 00:04:11]} {[%emt
00:00:02]} 1-0

[Event "FIDE U16 Olympiad_boards_1-80"]
[Site "Eindhoven, Netherlands"]
[Date "2023.08.14"]
[Round "3.76"]
[White "Mosurovic, Milena"]
[Black "Rida, Ruqayyah"]
[Result "1/2-1/2"]
[TimeControl "2700+10"]
[WhiteElo "1646"]
[BlackElo "1765"]

1. e4 {[%clk 00:45:17]} {[%emt 00:00:02]} e5 {[%clk 00:45:19]} {[%emt
00:00:01]} 2. Nf3 {[%clk 00:45:26]} {[%emt 00:00:01]} Nc6 {[%clk 00:45:28]}
{[%emt 00:00:02]} 3. Nc3 {[%clk 00:45:34]} {[%emt 00:00:01]} Nf6 {[%clk
00:45:37]} {[%emt 00:00:01]} 4. d4 {[%clk 00:45:42]} {[%emt 00:00:02]} exd4
{[%clk 00:45:39]} {[%emt 00:00:08]} 5. Nxd4 {[%clk 00:45:49]} {[%emt 00:00:02]}
Bb4 {[%clk 00:45:38]} {[%emt 00:00:11]} 6. Nxc6 {[%clk 00:45:49]} {[%emt
00:00:10]} bxc6 {[%clk 00:45:46]} {[%emt 00:00:03]} 7. Bd3 {[%clk 00:45:52]}
{[%emt 00:00:07]} O-O {[%clk 00:45:47]} {[%emt 00:00:09]} 8. O-O {[%clk
00:45:59]} {[%emt 00:00:03]} d5 {[%clk 00:45:55]} {[%emt 00:00:02]} 9. exd5
{[%clk 00:46:00]} {[%emt 00:00:09]} Bg4 {[%clk 00:46:03]} {[%emt 00:00:02]} 10.
f3 {[%clk 00:46:00]} {[%emt 00:00:10]} Bh5 {[%clk 00:46:11]} {[%emt 00:00:02]}
11. dxc6 {[%clk 00:45:50]} {[%emt 00:00:19]} Qd4+ {[%clk 00:46:17]} {[%emt
00:00:05]} 12. Kh1 {[%clk 00:45:58]} {[%emt 00:00:02]} Bxc3 {[%clk 00:46:23]}
{[%emt 00:00:04]} 13. bxc3 {[%clk 00:46:05]} {[%emt 00:00:03]} Qxc3 {[%clk
00:46:28]} {[%emt 00:00:05]} 14. Bf4 {[%clk 00:44:19]} {[%emt 00:01:55]} Qxc6
{[%clk 00:46:00]} {[%emt 00:00:38]} 15. h3 {[%clk 00:42:54]} {[%emt 00:01:35]}
Rad8 {[%clk 00:43:49]} {[%emt 00:02:22]} 16. Re1 {[%clk 00:36:33]} {[%emt
00:06:30]} Bg6 {[%clk 00:42:17]} {[%emt 00:01:42]} 17. Qe2 {[%clk 00:35:56]}
{[%emt 00:00:48]} Bxd3 {[%clk 00:34:17]} {[%emt 00:08:10]} 18. cxd3 {[%clk
00:35:38]} {[%emt 00:00:28]} Nd5 {[%clk 00:34:21]} {[%emt 00:00:05]} 19. Rac1
{[%clk 00:29:55]} {[%emt 00:05:54]} Qd7 {[%clk 00:31:56]} {[%emt 00:02:34]} 20.
Bh2 {[%clk 00:27:14]} {[%emt 00:02:50]} f5 {[%clk 00:22:31]} {[%emt 00:09:36]}
21. Qe6+ {[%clk 00:17:07]} {[%emt 00:10:17]} Rf7 {[%clk 00:21:09]} {[%emt
00:01:32]} 22. Re2 {[%clk 00:12:32]} {[%emt 00:04:45]} Qxe6 {[%clk 00:09:10]}
{[%emt 00:12:09]} 23. Rxe6 {[%clk 00:12:38]} {[%emt 00:00:04]} Nb4 {[%clk
00:06:15]} {[%emt 00:03:06]} 24. Rxc7 {[%clk 00:10:57]} {[%emt 00:01:51]} Rxc7
{[%clk 00:05:11]} {[%emt 00:01:14]} 25. Bxc7 {[%clk 00:11:01]} {[%emt
00:00:05]} Rd7 {[%clk 00:03:56]} {[%emt 00:01:24]} 26. Bb8 {[%clk 00:09:42]}
{[%emt 00:01:30]} Nxa2 {[%clk 00:02:59]} {[%emt 00:01:07]} 27. Ra6 {[%clk
00:09:30]} {[%emt 00:00:22]} Nb4 {[%clk 00:02:56]} {[%emt 00:00:11]} 28. Rxa7
{[%clk 00:09:01]} {[%emt 00:00:40]} Rxa7 {[%clk 00:02:31]} {[%emt 00:00:35]} 29.
Bxa7 {[%clk 00:09:09]} {[%emt 00:00:02]} Nxd3 {[%clk 00:02:39]} {[%emt
00:00:03]} 1/2-1/2

[Event "FIDE U16 Olympiad_boards_1-80"]
[Site "Eindhoven, Netherlands"]
[Date "2023.08.14"]
[Round "3.77"]
[White "Ritzerveld, Noah"]
[Black "Hernandez Mendez, Iker"]
[Result "1/2-1/2"]
[TimeControl "2700+10"]
[WhiteElo "1959"]
[BlackElo "1686"]

1. e4 {[%clk 00:45:18]} {[%emt 00:00:02]} c5 {[%clk 00:45:18]} {[%emt
00:00:02]} 2. Nf3 {[%clk 00:45:26]} {[%emt 00:00:01]} Nc6 {[%clk 00:45:26]}
{[%emt 00:00:02]} 3. d4 {[%clk 00:45:35]} {[%emt 00:00:01]} cxd4 {[%clk
00:45:34]} {[%emt 00:00:02]} 4. Nxd4 {[%clk 00:45:44]} g6 {[%clk 00:45:42]}
{[%emt 00:00:02]} 5. c4 {[%clk 00:45:48]} {[%emt 00:00:06]} Nf6 {[%clk
00:45:48]} {[%emt 00:00:04]} 6. Nc3 {[%clk 00:45:57]} {[%emt 00:00:01]} Nxd4
{[%clk 00:45:55]} {[%emt 00:00:02]} 7. Qxd4 {[%clk 00:45:46]} {[%emt 00:00:21]}
d6 {[%clk 00:46:01]} {[%emt 00:00:05]} 8. f3 {[%clk 00:45:12]} {[%emt
00:00:44]} Bg7 {[%clk 00:46:07]} {[%emt 00:00:04]} 9. Be3 {[%clk 00:45:17]}
{[%emt 00:00:05]} O-O {[%clk 00:46:13]} {[%emt 00:00:04]} 10. Qd2 {[%clk
00:45:21]} {[%emt 00:00:06]} a6 {[%clk 00:45:48]} {[%emt 00:00:35]} 11. Be2
{[%clk 00:45:02]} {[%emt 00:00:29]} Qa5 {[%clk 00:44:05]} {[%emt 00:01:53]} 12.
O-O {[%clk 00:44:14]} {[%emt 00:00:58]} Be6 {[%clk 00:43:14]} {[%emt 00:01:01]}
13. Nd5 {[%clk 00:42:12]} {[%emt 00:02:12]} Qxd2 {[%clk 00:43:18]} {[%emt
00:00:05]} 14. Nxe7+ {[%clk 00:41:34]} {[%emt 00:00:48]} Kh8 {[%clk 00:43:27]}
{[%emt 00:00:02]} 15. Bxd2 {[%clk 00:41:42]} {[%emt 00:00:02]} Rfe8 {[%clk
00:42:23]} {[%emt 00:01:14]} 16. Nd5 {[%clk 00:41:21]} {[%emt 00:00:31]} Nxd5
{[%clk 00:40:56]} {[%emt 00:01:37]} 17. cxd5 {[%clk 00:40:15]} {[%emt
00:01:15]} Bd4+ {[%clk 00:39:46]} {[%emt 00:01:20]} 18. Kh1 {[%clk 00:39:53]}
{[%emt 00:00:33]} Bxd5 {[%clk 00:39:54]} {[%emt 00:00:02]} 19. Bc3 {[%clk
00:27:43]} {[%emt 00:12:20]} Bxc3 {[%clk 00:39:50]} {[%emt 00:00:14]} 20. bxc3
{[%clk 00:27:51]} {[%emt 00:00:02]} Rac8 {[%clk 00:36:19]} {[%emt 00:03:41]} 21.
Rfd1 {[%clk 00:25:19]} {[%emt 00:02:42]} Be6 {[%clk 00:32:57]} {[%emt
00:03:32]} 22. Rxd6 {[%clk 00:13:51]} {[%emt 00:11:38]} Rxc3 {[%clk 00:32:55]}
{[%emt 00:00:12]} 23. a4 {[%clk 00:12:57]} {[%emt 00:01:05]} Rec8 {[%clk
00:31:14]} {[%emt 00:01:50]} 24. h3 {[%clk 00:12:15]} {[%emt 00:00:52]} Rc2
{[%clk 00:19:03]} {[%emt 00:12:21]} 25. Bd3 {[%clk 00:10:37]} {[%emt 00:01:47]}
Rd2 {[%clk 00:10:34]} {[%emt 00:08:40]} 26. e5 {[%clk 00:09:34]} {[%emt
00:01:13]} Rc5 {[%clk 00:10:15]} {[%emt 00:00:29]} 27. Re1 {[%clk 00:06:51]}
{[%emt 00:02:53]} Ra5 {[%clk 00:06:37]} {[%emt 00:03:47]} 28. Bc4 {[%clk
00:03:53]} {[%emt 00:03:09]} Rxe5 {[%clk 00:04:39]} {[%emt 00:02:08]} 29. Rxe5
{[%clk 00:02:47]} {[%emt 00:01:15]} Rxd6 {[%clk 00:04:48]} {[%emt 00:00:02]} 30.
Bxe6 {[%clk 00:02:56]} Rxe6 {[%clk 00:04:54]} {[%emt 00:00:04]} 31. Rc5 {[%clk
00:02:50]} {[%emt 00:00:15]} Kg7 {[%clk 00:04:46]} {[%emt 00:00:19]} 32. Kh2
{[%clk 00:02:41]} {[%emt 00:00:19]} Rc6 {[%clk 00:04:54]} {[%emt 00:00:01]} 33.
Rd5 {[%clk 00:02:42]} {[%emt 00:00:09]} Kf6 {[%clk 00:04:43]} {[%emt 00:00:21]}
34. Rd7 {[%clk 00:02:38]} {[%emt 00:00:14]} Rc4 {[%clk 00:03:57]} {[%emt
00:00:57]} 35. Rxb7 {[%clk 00:02:44]} {[%emt 00:00:04]} Rxa4 {[%clk 00:04:05]}
{[%emt 00:00:02]} 36. Ra7 {[%clk 00:02:49]} {[%emt 00:00:05]} h5 {[%clk
00:03:54]} {[%emt 00:00:20]} 37. g4 {[%clk 00:02:42]} {[%emt 00:00:17]} h4
{[%clk 00:03:28]} {[%emt 00:00:36]} 38. Kg2 {[%clk 00:02:31]} {[%emt 00:00:21]}
Ra2+ {[%clk 00:03:32]} {[%emt 00:00:07]} 39. Kg1 {[%clk 00:02:35]} {[%emt
00:00:06]} g5 {[%clk 00:03:19]} {[%emt 00:00:23]} 40. Kh1 {[%clk 00:02:27]}
{[%emt 00:00:18]} a5 {[%clk 00:03:15]} {[%emt 00:00:14]} 41. Kg1 {[%clk
00:02:31]} {[%emt 00:00:06]} a4 {[%clk 00:03:14]} {[%emt 00:00:11]} 42. Ra5
{[%clk 00:02:24]} {[%emt 00:00:18]} a3 {[%emt 00:00:08]} 43. Rf5+ {[%clk
00:02:27]} Kg6 {[%clk 00:03:20]} {[%emt 00:00:11]} 44. Ra5 {[%clk 00:02:37]}
{[%emt 00:00:02]} f6 {[%clk 00:02:30]} {[%emt 00:00:59]} 45. Ra7 {[%clk
00:02:45]} {[%emt 00:00:02]} Ra1+ {[%clk 00:02:00]} {[%emt 00:00:40]} 46. Kg2
{[%clk 00:02:54]} {[%emt 00:00:01]} a2 {[%clk 00:02:05]} {[%emt 00:00:05]} 47.
Kh2 {[%clk 00:03:00]} {[%emt 00:00:04]} Rf1 {[%clk 00:01:14]} {[%emt 00:01:00]}
48. Rxa2 {[%clk 00:03:09]} {[%emt 00:00:02]} Rxf3 {[%clk 00:01:22]} {[%emt
00:00:02]} 49. Ra7 {[%clk 00:02:35]} {[%emt 00:00:43]} f5 {[%clk 00:01:08]}
{[%emt 00:00:24]} 50. Ra6+ {[%clk 00:02:44]} {[%emt 00:00:02]} Kf7 {[%clk
00:01:14]} {[%emt 00:00:03]} 51. gxf5 {[%clk 00:02:52]} {[%emt 00:00:03]} Rf2+
{[%clk 00:01:20]} {[%emt 00:00:04]} 52. Kg1 {[%clk 00:02:55]} {[%emt 00:00:05]}
Rxf5 {[%clk 00:01:28]} {[%emt 00:00:03]} 53. Kg2 {[%clk 00:03:00]} {[%emt
00:00:05]} Re5 {[%clk 00:00:56]} {[%emt 00:00:42]} 54. Kf3 {[%clk 00:02:54]}
{[%emt 00:00:16]} Rb5 {[%clk 00:00:41]} {[%emt 00:00:25]} 55. Kg4 {[%clk
00:02:39]} {[%emt 00:00:25]} Kg7 {[%clk 00:00:31]} {[%emt 00:00:20]} 56. Rc6
{[%clk 00:02:48]} {[%emt 00:00:02]} Rb3 {[%clk 00:00:34]} {[%emt 00:00:07]} 57.
Kxg5 {[%clk 00:02:51]} {[%emt 00:00:07]} Rxh3 {[%clk 00:00:42]} {[%emt
00:00:02]} 58. Rc7+ {[%clk 00:03:00]} {[%emt 00:00:02]} Kg8 {[%clk 00:00:42]}
{[%emt 00:00:09]} 59. Rc4 {[%clk 00:03:07]} {[%emt 00:00:03]} Rh1 {[%clk
00:00:38]} {[%emt 00:00:14]} 60. Rxh4 {[%clk 00:03:14]} {[%emt 00:00:03]} Rxh4
{[%clk 00:00:46]} {[%emt 00:00:02]} 61. Kxh4 {[%clk 00:03:23]} {[%emt
00:00:01]} 1/2-1/2

[Event "FIDE U16 Olympiad_boards_1-80"]
[Site "Eindhoven, Netherlands"]
[Date "2023.08.14"]
[Round "3.78"]
[White "Thogata, Randheer"]
[Black "Terlouw, Wouter"]
[Result "1-0"]
[TimeControl "2700+10"]
[WhiteElo "1636"]
[BlackElo "1845"]

1. e4 {[%clk 00:45:18]} {[%emt 00:00:01]} c5 {[%clk 00:45:19]} {[%emt
00:00:02]} 2. Nf3 {[%clk 00:45:23]} {[%emt 00:00:05]} Nc6 {[%clk 00:45:27]}
{[%emt 00:00:02]} 3. Bb5 {[%clk 00:45:29]} {[%emt 00:00:03]} g6 {[%clk
00:45:13]} {[%emt 00:00:24]} 4. O-O {[%clk 00:45:33]} {[%emt 00:00:06]} Bg7
{[%clk 00:45:19]} {[%emt 00:00:03]} 5. Re1 {[%clk 00:44:52]} {[%emt 00:00:51]}
e5 {[%clk 00:45:13]} {[%emt 00:00:17]} 6. b4 {[%clk 00:41:11]} {[%emt
00:03:52]} Nxb4 {[%clk 00:44:57]} {[%emt 00:00:25]} 7. c3 {[%clk 00:35:33]}
{[%emt 00:05:48]} Nc6 {[%clk 00:44:40]} {[%emt 00:00:26]} 8. Ba3 {[%clk
00:29:09]} {[%emt 00:06:35]} Qb6 {[%clk 00:42:33]} {[%emt 00:02:07]} 9. Bxc6
{[%clk 00:21:26]} {[%emt 00:08:03]} Qxc6 {[%clk 00:40:14]} {[%emt 00:02:29]} 10.
d4 {[%clk 00:20:26]} {[%emt 00:01:11]} cxd4 {[%clk 00:40:11]} {[%emt 00:00:13]}
11. cxd4 {[%clk 00:20:32]} {[%emt 00:00:03]} exd4 {[%clk 00:40:19]} {[%emt
00:00:03]} 12. Nbd2 {[%clk 00:19:10]} {[%emt 00:01:32]} d3 {[%clk 00:34:51]}
{[%emt 00:05:37]} 13. Rc1 {[%clk 00:18:59]} {[%emt 00:00:20]} Qa6 {[%clk
00:34:49]} {[%emt 00:00:07]} 14. Nc4 {[%clk 00:18:17]} {[%emt 00:00:59]} Nh6
{[%clk 00:26:57]} {[%emt 00:08:02]} 15. Qxd3 {[%clk 00:15:23]} {[%emt
00:03:03]} Bf8 {[%clk 00:22:38]} {[%emt 00:04:29]} 16. Qd4 {[%clk 00:13:08]}
{[%emt 00:02:25]} Rg8 {[%clk 00:21:17]} {[%emt 00:01:31]} 17. Nd6+ {[%clk
00:11:23]} {[%emt 00:01:55]} Kd8 {[%clk 00:16:56]} {[%emt 00:04:31]} 18. Qf6+
{[%clk 00:10:53]} {[%emt 00:00:41]} Be7 {[%clk 00:17:01]} {[%emt 00:00:04]} 19.
Nxf7+ {[%clk 00:10:58]} {[%emt 00:00:06]} 1-0